Cogmind - Beta 14 @@@ ROGUE MODE // 2024.12.24 @ 22:05:23 Player: K.Ioz Result: Destroyed by G-67 Veteran with Field Laser Performance ------------- Evolutions (6) 3000 Regions Visited (17) 3400 Robots Destroyed (141) 705 Value Destroyed (4286) 4286 Prototype IDs (43) 860 Alien Tech Used (1) 200 Bonus (1418) 1418 TOTAL SCORE: 13869 Bonus ------- High Alert Combat Kills 118 Entered Garrisons 200 Used RIF Installer 500 Aligned with FarCom 300 Met Zhirov 300 Cogmind --------- Core Integrity 0/1150 Matter 5/300 Energy 100/100 System Corruption 4% Temperature Cool (21) Movement Core (50) Location -4/Extension Parts ------- > --- POWER (1) -------- (None) > --- PROPULSION (4) --- (None) > --- UTILITY (12) ----- Enhanced Optical Array > --- WEAPON (2) ------- (None) > --- INVENTORY (5) ---- Power Amplifier High-capacity Matter Pod (0) Improved Thermal Shield Transdimensional Reconstructor Heavy Hammer Peak State ------------ > --- POWER ------------ Improved Fusion Compressor > --- PROPULSION ------- Improved Flight Unit Nuclear Pulse Array > --- UTILITY ---------- Advanced Energy Well Enhanced Optical Array Advanced Signal Interpreter Advanced ECM Suite Reaction Control System Experimental Power Shielding Improved Utility Shielding Improved Hacking Suite Advanced Hacking Suite System Shield Improved Component Analysis Suite > --- WEAPON ----------- (None) > --- INVENTORY -------- High-capacity Matter Pod Improved Thermal Shield Drone Bay Transdimensional Reconstructor Heavy Hammer [Rating: 78] Favorites ----------- Power Light Nuclear Core Engine Improved Ion Engine Power Core Light Nuclear Core Propulsion Light Treads Treads Light Treads Flight Unit Improved Flight Unit Utility Large Storage Unit Device Improved Heat Sink Storage Large Storage Unit Processor Targeting Computer Hackware System Shield Protection Reactive Plating Weapon Assault Cannon Energy Gun Medium Laser Energy Cannon Particle Cannon Ballistic Gun Light Assault Rifle Ballistic Cannon Assault Cannon Launcher Grenade Launcher Special Weapon Remote Datajack Impact Weapon Heavy Hammer Build | -11 -10 -10 -9 -9 -9 -8 -8 -8 -7 -6 -5 -5 -5 -5 -4 -4 -4 ------- Run | Yrd Mat Min Mat Min Exi Min Mat Gar Fac Fac Fac Upp Upp Zhi Pro Fac Ext Slots Evolved 12 | . . . 2 . . . 2 . 2 2 2 . . . . 2 . Power . | . . . . . . . . . . . . . . . . . . Propulsion 2 | . . . . . . . 1 . . . . . . . . 1 . Utility 10 | . . . 2 . . . 1 . 2 2 2 . . . . 1 . Weapon . | . . . . . . . . . . . . . . . . . . Parts Attached 180 | 6 14 4 28 6 1 3 20 8 21 26 26 . 3 3 . 5 6 Power 16 | 1 1 1 2 1 . . 2 . 2 1 1 . 1 . . 1 2 Engine 7 | 1 . . 2 1 . . 1 . . . 1 . 1 . . . . Core 9 | . 1 1 . . . . 1 . 2 1 . . . . . 1 2 Reactor . | . . . . . . . . . . . . . . . . . . Propulsion 17 | 2 . 1 4 . . . 3 . . 5 1 . 1 . . . . Treads 12 | 2 . 1 4 . . . 3 . . 2 . . . . . . . Leg . | . . . . . . . . . . . . . . . . . . Wheel . | . . . . . . . . . . . . . . . . . . Hover . | . . . . . . . . . . . . . . . . . . Flight 5 | . . . . . . . . . . 3 1 . 1 . . . . Utility 62 | 1 3 . 7 2 1 . 7 1 9 10 9 . 1 3 . 4 4 Device 25 | . . . 2 1 . . 2 1 4 4 4 . 1 1 . 1 4 Storage 11 | 1 1 . 1 . 1 . 2 . 2 1 . . . 1 . 1 . Processor 8 | . 2 . . . . . . . 2 1 2 . . . . 1 . Hackware 5 | . . . . . . . . . 1 2 2 . . . . . . Protection 13 | . . . 4 1 . . 3 . . 2 1 . . 1 . 1 . Artifact . | . . . . . . . . . . . . . . . . . . Weapon 85 | 2 10 2 15 3 . 3 8 7 10 10 15 . . . . . . Energy Gun 13 | 1 8 1 3 . . . . . . . . . . . . . . Energy Cannon 26 | . . . 2 3 . . 6 3 5 7 . . . . . . . Ballistic Gun 6 | 1 1 . 4 . . . . . . . . . . . . . . Ballistic Cannon 7 | . . 1 2 . . . 1 1 1 1 . . . . . . . Launcher 12 | . 1 . 2 . . 1 1 3 2 2 . . . . . . . Special Weapon 1 | . . . . . . . . . 1 . . . . . . . . Impact Weapon 20 | . . . 2 . . 2 . . 1 . 15 . . . . . . Slashing Weapon . | . . . . . . . . . . . . . . . . . . Piercing Weapon . | . . . . . . . . . . . . . . . . . . Special Melee Weapon . | . . . . . . . . . . . . . . . . . . Unidentified Prototypes 5 | . . . 1 . . . . . . . . . . 4 . . . Parts Lost 31 | . 1 1 3 . . 1 3 . . 12 1 . 4 . 1 2 2 Power 3 | . . . . . . . 1 . . 1 1 . . . . . . Propulsion 9 | . . . 1 . . . . . . 5 . . 1 . . 2 . Utility 14 | . . . 2 . . 1 1 . . 4 . . 3 . 1 . 2 Weapon 5 | . 1 1 . . . . 1 . . 2 . . . . . . . Highest Loss Streak 5 | . 1 1 1 . . 1 2 . . 5 1 . 4 . 1 2 1 To Critical Strikes . | . . . . . . . . . . . . . . . . . . Average Slot Usage (%) 92 | . 98 99 95 99 100 93 96 98 99 96 85 76 66 68 70 67 42 Engine 3 | . 5 . 6 11 11 11 6 . . . 1 . 2 5 5 . . Core 5 | . 8 14 4 . . . 2 9 7 6 3 . . . . 4 4 Treads 18 | . 28 28 22 22 22 22 27 27 23 18 . . . . . . . Flight 2 | . . . . . . . . . . . 15 11 10 11 11 6 . Device 14 | . . . 9 10 11 11 17 18 23 19 29 29 21 17 11 14 14 Storage 8 | . 14 14 11 11 11 11 9 9 7 5 . . . 1 5 5 4 Processor 8 | . 12 14 11 11 11 5 . . 8 12 11 11 11 11 11 9 5 Hackware 4 | . . . . . . . . . 1 5 21 23 19 17 17 15 2 Protection 8 | . . . 8 10 11 11 14 18 10 11 . . . 1 5 9 9 Energy Gun 2 | . 13 13 4 . . . . . . . . . . . . . . Energy Cannon 3 | . . . 2 11 11 5 8 6 5 4 . . . . . . . Ballistic Gun 2 | . 14 2 7 . . . . . . . . . . . . . . Ballistic Cannon 5 | . . 11 8 11 11 11 9 7 7 6 . . . . . . . Peak Build Rating 78 | 6 10 12 19 18 18 18 35 26 38 52 68 61 63 69 69 78 63 Average Rating 30 | 4 8 11 16 17 17 17 25 25 34 43 60 61 55 59 68 71 44 On Entrance 33 | . 6 10 12 18 17 18 17 26 26 37 44 61 61 54 69 68 63 Naked Turns . | . . . . . . . . . . . . . . . . . . Heaviest Build 62 | 13 28 31 40 40 36 36 62 54 59 59 21 9 14 18 18 18 18 Greatest Support 63 | 40 40 40 40 40 40 40 60 60 60 63 19 19 19 18 18 18 3 Greatest Overweight (x) 5 | 1 . . . . . . 1 . . 2 1 . . . . 5 5 Average Overweight (x) . | . . . . . . . . . . . . . . . . . 4 Largest Inventory Capacity 20 | 8 15 15 15 15 15 15 20 15 15 15 5 5 5 5 5 5 5 Average Capacity 12 | 5 14 15 15 15 15 15 15 15 15 14 5 5 5 5 5 5 5 Most Carried 15 | 4 15 15 15 15 15 15 15 15 15 15 5 5 5 5 5 5 5 Average Carried 12 | 2 12 14 14 15 14 15 14 14 14 14 4 5 4 4 5 4 5 Final Capacity 15 | 8 15 15 15 15 15 15 15 15 15 5 5 5 5 5 5 5 5 Final Carried 15 | 4 15 15 15 15 15 15 14 14 15 5 5 5 4 5 5 5 5 Class Distribution -------------------- 66% | Mutant 10% | Hacker-Scout 8% | Scavenger-Mutant 6% | Hacker-Mutant 6% | Scavenger-Skirmisher Dominant Class ---------------- Mutant | -10/Materials Mutant | -10/Mines Mutant | -9/Materials Mutant | -9/Mines Mutant | -9/Exiles Mutant | -8/Mines Mutant | -8/Materials Mutant | -8/Garrison Scavenger-Skirmisher | -7/Factory Scavenger-Mutant | -6/Factory Hacker-Scout | -5/Factory Hacker-Mutant | -5/Upper Caves Hacker-Mutant | -5/Upper Caves Hacker-Mutant | -5/Zhirov Hacker-Mutant | -4/Proximity Caves Hacker-Mutant | -4/Factory Mutant | -4/Extension Resources | -11 -10 -10 -9 -9 -9 -8 -8 -8 -7 -6 -5 -5 -5 -5 -4 -4 -4 ----------- Run | Yrd Mat Min Mat Min Exi Min Mat Gar Fac Fac Fac Upp Upp Zhi Pro Fac Ext Matter Collected 3605 | 238 214 310 756 143 . 47 472 66 319 648 . 94 298 . . . . Remotely . | . . . . . . . . . . . . . . . . . . Salvage Created 4173 | . 663 196 1073 201 . 7 623 118 334 958 . . . . . . . Parts 283 | . 49 12 80 10 . 2 39 17 22 52 . . . . . . . Haulers Intercepted 6 | . 2 . 3 . . . 1 . . . . . . . . . . Recyclers Shooed 3 | . . . 1 . . 1 . . . 1 . . . . . . . Parts Field Recycled . | . . . . . . . . . . . . . . . . . . Retrieved Matter . | . . . . . . . . . . . . . . . . . . Parts Self-Destructed 2 | . . . . . . . . . . . . 2 . . . . . Prevented 5 | . . . . . . . . . . . . 1 4 . . . . Kills | -11 -10 -10 -9 -9 -9 -8 -8 -8 -7 -6 -5 -5 -5 -5 -4 -4 -4 ------- Run | Yrd Mat Min Mat Min Exi Min Mat Gar Fac Fac Fac Upp Upp Zhi Pro Fac Ext Combat Hostiles Destroyed 111 | . 14 8 29 5 . 3 10 12 9 21 . . . . . . . Guns 32 | . 13 3 16 . . . . . . . . . . . . . . Cannons 47 | . . 5 9 3 . 1 7 3 5 14 . . . . . . . AOE 29 | . 1 . 4 1 . 2 3 9 3 6 . . . . . . . Classes Destroyed 13 | . 5 . 1 3 . . 3 . 1 . . . . . . . . Worker 2 | . . . . 1 . . . . 1 . . . . . . . . Builder 5 | . . . . . . . 3 . . 2 . . . . . . . Tunneler 1 | . . . . . . . 1 . . . . . . . . . . Hauler 6 | . 2 . 3 . . . 1 . . . . . . . . . . Recycler 2 | . . . . 1 . . . . . 1 . . . . . . . Operator 2 | . 1 . 1 . . . . . . . . . . . . . . Watcher 12 | . 2 . 4 . . . 2 . 2 2 . . . . . . . Swarmer 42 | . 5 4 10 1 . 3 . 11 4 4 . . . . . . . Grunt 45 | . 9 4 11 3 . . 2 . 4 12 . . . . . . . Duelist 2 | . . . . 1 . . . . . 1 . . . . . . . Sentry 16 | . . . 8 . . . 6 1 . 1 . . . . . . . Hunter 3 | . . . . . . . 2 . . 1 . . . . . . . Programmer 3 | . . . . . . . . . 1 2 . . . . . . . Best Kill Streak 10 | . 3 2 5 3 . 3 5 7 5 10 . . . . . . . Combat Bots Only 7 | . 3 2 5 2 . 3 2 7 4 7 . . . . . . . Max Kills in Single Turn 3 | . 1 1 3 2 . 1 3 3 3 3 . . . . . . . Gunslinging . | . . . . . . . . . . . . . . . . . . Exploded 3 | . 1 . 2 1 . 1 1 3 3 3 . . . . . . . Melee . | . . . . . . . . . . . . . . . . . . Uniques/NPCs Destroyed . | . . . . . . . . . . . . . . . . . . Combat | -11 -10 -10 -9 -9 -9 -8 -8 -8 -7 -6 -5 -5 -5 -5 -4 -4 -4 -------- Run | Yrd Mat Min Mat Min Exi Min Mat Gar Fac Fac Fac Upp Upp Zhi Pro Fac Ext Hostile Shots Fired 677 | . 61 31 107 25 . 16 49 21 26 172 29 16 29 . 3 24 68 Missed 236 | . 21 6 28 9 . 7 13 9 10 61 18 11 13 . 1 15 14 Damage Taken 6706 | . 474 260 988 300 . 80 596 91 216 1619 260 88 281 . 36 270 1147 Core 2000 | . 65 30 98 78 . 9 10 19 14 201 106 69 127 . 19 81 1074 Absorbed by Shields 208 | . . . . . . . . . 8 200 . . . . . . . Redirected to Shielding 92 | . . . . . . . . . . . . . . . . 77 15 Ignored by Resistances 104 | . . . . . . . 56 28 20 . . . . . . . . Regen/Repaired (Parts) 39 | . 39 . . . . . . . . . . . . . . . . Core Remaining (%) 78 | 100 . 62 . . . 53 . 94 98 76 . . . . 67 . . Volleys Fired 302 | . 57 17 80 15 . 5 41 15 21 51 . . . . . . . Largest 2 | . 2 2 2 2 . 1 2 2 2 2 . . . . . . . Hottest 117 | . 70 89 100 112 . 44 112 112 117 117 . . . . . . . Shots Fired 581 | . 114 34 159 30 . 5 81 20 41 97 . . . . . . . Gun 226 | . 113 18 95 . . . . . . . . . . . . . . Cannon 338 | . . 16 62 30 . 2 80 16 38 94 . . . . . . . Launcher 17 | . 1 . 2 . . 3 1 4 3 3 . . . . . . . Special . | . . . . . . . . . . . . . . . . . . Kinetic 338 | . 57 17 117 15 . 2 42 7 20 61 . . . . . . . Thermal 143 | . 14 5 35 9 . . 35 9 6 30 . . . . . . . Explosive 17 | . 1 . 2 . . 3 1 4 3 3 . . . . . . . Electromagnetic 83 | . 42 12 5 6 . . 3 . 12 3 . . . . . . . Robot Hit Streak 20 | . 10 7 20 4 . 3 11 12 8 13 . . . . . . . Robot Miss Streak 6 | . 4 6 3 3 . 2 6 6 4 2 . . . . . . . Penetration Max . | . . . . . . . . . . . . . . . . . . Secondary Targets 1 | . 1 . . . . . . . . . . . . . . . . Max Gunslinging Chain 1 | . 1 . . . . . . . . . . . . . . . . Shots Hit Robots 371 | . 75 18 114 19 . 3 43 11 22 66 . . . . . . . Core Hits 204 | . 35 11 47 8 . 4 22 12 14 51 . . . . . . . Critical Kills 2 | . . . 1 . . . . . . 1 . . . . . . . Critical Parts Destroyed 2 | . 1 . 1 . . . . . . . . . . . . . . Critical Strikes 22 | . 2 1 7 2 . . . . 1 9 . . . . . . . Burn 5 | . 1 . 4 . . . . . . . . . . . . . . Meltdown 1 | . . . . . . . . . . 1 . . . . . . . Destroy 3 | . 1 . 2 . . . . . . . . . . . . . . Blast 12 | . . 1 1 1 . . . . 1 8 . . . . . . . Corrupt 1 | . . . . 1 . . . . . . . . . . . . . Melee Attacks 25 | . . . 4 . . . . . 1 . 20 . . . . . . Impact 25 | . . . 4 . . . . . 1 . 20 . . . . . . Slashing . | . . . . . . . . . . . . . . . . . . Piercing . | . . . . . . . . . . . . . . . . . . Sneak Attacks . | . . . . . . . . . . . . . . . . . . Combat Hostiles . | . . . . . . . . . . . . . . . . . . Follow-up Attacks . | . . . . . . . . . . . . . . . . . . Damage Inflicted 10065 | . 1001 300 2295 576 . 198 1628 610 1030 2427 . . . . . . . Guns 1925 | . 834 119 972 . . . . . . . . . . . . . . Cannons 5356 | . . 181 1042 480 . 21 1038 150 587 1857 . . . . . . . Explosions 2777 | . 167 . 281 96 . 177 583 460 443 570 . . . . . . . Melee . | . . . . . . . . . . . . . . . . . . Ramming 7 | . . . . . . . 7 . . . . . . . . . . Kinetic 4798 | . 288 188 1699 212 . 21 701 68 258 1363 . . . . . . . Thermal 2207 | . 204 25 349 242 . . 329 82 290 686 . . . . . . . Explosive 1496 | . 100 . 220 . . 177 . 460 244 295 . . . . . . . Electromagnetic 1557 | . 409 87 27 122 . . 591 . 238 83 . . . . . . . Impact . | . . . . . . . . . . . . . . . . . . Slashing . | . . . . . . . . . . . . . . . . . . Piercing . | . . . . . . . . . . . . . . . . . . Highest Corruption 10 | . . . 1 1 1 1 10 10 1 3 . . . . . 3 4 Average Corruption 3 | . . . 1 1 1 1 7 10 1 2 . . . . . 2 3 Corruption Purged . | . . . . . . . . . . . . . . . . . . Corruption Blocked . | . . . . . . . . . . . . . . . . . . Effects 105 | . . . 4 3 4 3 31 32 8 10 . . . . . . 10 Message Errors 27 | . . . 1 . 2 2 8 11 . 3 . . . . . . . Matter Fused 23 | . . . 2 1 . . 4 8 3 3 . . . . . . 2 Heat Flow Errors 17 | . . . . 2 . 1 4 6 2 1 . . . . . . 1 Energy Discharges 13 | . . . . . . . 4 4 1 2 . . . . . . 2 Parts Rejected 1 | . . . . . . . . . . 1 . . . . . . . Parts Fused 1 | . . . . . . . 1 . . . . . . . . . . Data Loss (minor) 12 | . . . . . 2 . 2 3 1 . . . . . . . 4 Data Loss (major) 4 | . . . . . . . 3 . . . . . . . . . 1 Misfires 4 | . . . 1 . . . 2 . 1 . . . . . . . . Misdirections 1 | . . . . . . . 1 . . . . . . . . . . Weapon Failures 2 | . . . . . . . 2 . . . . . . . . . . Overload Shots . | . . . . . . . . . . . . . . . . . . Overflow Damage 233 | . 11 4 23 . . 44 26 5 69 51 . . . . . . . Projectiles 90 | . . 4 13 . . . 18 . 49 6 . . . . . . . Explosions 143 | . 11 . 10 . . 44 8 5 20 45 . . . . . . . Melee . | . . . . . . . . . . . . . . . . . . Knockbacks 31 | . . 1 9 7 . . 4 . 2 8 . . . . . . . Impact . | . . . . . . . . . . . . . . . . . . Kinetic 30 | . . 1 9 6 . . 4 . 2 8 . . . . . . . Secondary 1 | . . . . 1 . . . . . . . . . . . . . Self-Inflicted Damage 171 | . 55 . 20 . . . 96 . . . . . . . . . . Shots 4 | . 2 . 1 . . . 1 . . . . . . . . . . Rammed 1 | . . . . . . . 1 . . . . . . . . . . Targets Rammed 1 | . . . . . . . 1 . . . . . . . . . . Kicked . | . . . . . . . . . . . . . . . . . . Crushed . | . . . . . . . . . . . . . . . . . . Highest Temperature 378 | . 100 108 300 188 . 71 378 215 156 141 . . . . . . 78 Average Temperature 65 | . 31 43 76 55 . 38 107 89 48 39 . . . . . . 56 Received Heat Transfer 1762 | . 177 81 366 69 . . 180 . 68 413 18 45 18 . . . 327 Effects 4 | . . . 3 . . . 1 . . . . . . . . . . Interference 3 | . . . 3 . . . . . . . . . . . . . . Damage (minor) 1 | . . . . . . . 1 . . . . . . . . . . Siege Activations . | . . . . . . . . . . . . . . . . . . Robots Corrupted 2 | . . . . 1 . . . . 1 . . . . . . . . Combat Hostiles 2 | . . . . 1 . . . . 1 . . . . . . . . Parts Fried 5 | . 1 . . . . . 3 . . 1 . . . . . . . Impact Corruptions . | . . . . . . . . . . . . . . . . . . Robots Melted 1 | . . . . . . . . . . 1 . . . . . . . Combat Hostiles 1 | . . . . . . . . . . 1 . . . . . . . Parts Melted 4 | . . . 1 . . . . . . 3 . . . . . . . Heat Transferred 4252 | . 581 74 1173 359 . . 592 148 298 1027 . . . . . . . Parts Sabotaged . | . . . . . . . . . . . . . . . . . . Parts Stolen . | . . . . . . . . . . . . . . . . . . Parts Stripped . | . . . . . . . . . . . . . . . . . . Power Chain Reactions 4 | . 1 . 1 1 . . . . 1 . . . . . . . . Latent Energy Used 557 | . . . . . . . 557 . . . . . . . . . . LE Corruption 9 | . . . . . . . 9 . . . . . . . . . . Alert | -11 -10 -10 -9 -9 -9 -8 -8 -8 -7 -6 -5 -5 -5 -5 -4 -4 -4 ------- Run | Yrd Mat Min Mat Min Exi Min Mat Gar Fac Fac Fac Upp Upp Zhi Pro Fac Ext Peak Influence 556 | . 271 177 556 209 . 88 232 442 463 434 280 . . . . 100 15 Initial 231 | . . 10 . 143 . . 33 109 231 42 212 . . . . . . Average 131 | . 99 42 269 137 . 46 97 270 208 77 69 . . . . 38 . Maximum Alert Level 2 | . 1 . 2 1 . . 1 2 2 2 1 . . . . . . Low Security (%) 72 | 100 76 100 42 60 . 100 83 39 46 88 85 . . . . 100 100 Level 1 21 | . 23 . 25 39 . . 16 51 50 8 14 . . . . . . Level 2 5 | . . . 31 . . . . 8 2 3 . . . . . . . Level 3 . | . . . . . . . . . . . . . . . . . . Level 4 . | . . . . . . . . . . . . . . . . . . Level 5 . | . . . . . . . . . . . . . . . . . . High Security . | . . . . . . . . . . . . . . . . . . Max Security . | . . . . . . . . . . . . . . . . . . Squads Dispatched 22 | . 4 . 1 . . . 5 . 2 7 2 . . . . 1 . Investigation 5 | . 1 . . . . . 2 . 1 1 . . . . . . . Extermination 6 | . . . . . . . . . 1 2 2 . . . . 1 . Reinforcement 7 | . 3 . 1 . . . . . . 3 . . . . . . . Assault . | . . . . . . . . . . . . . . . . . . Garrison 4 | . . . . . . . 3 . . 1 . . . . . . . Intercept . | . . . . . . . . . . . . . . . . . . Searches Triggered . | . . . . . . . . . . . . . . . . . . Construction Impeded 1 | . . . . . . . . . . 1 . . . . . . . Haulers Reinforced . | . . . . . . . . . . . . . . . . . . Active Scanning Responses . | . . . . . . . . . . . . . . . . . . Cargo Convoy Interrupts . | . . . . . . . . . . . . . . . . . . Stealth | -11 -10 -10 -9 -9 -9 -8 -8 -8 -7 -6 -5 -5 -5 -5 -4 -4 -4 --------- Run | Yrd Mat Min Mat Min Exi Min Mat Gar Fac Fac Fac Upp Upp Zhi Pro Fac Ext Distress Signals 16 | . 1 . 1 . . . 6 . . 4 3 . . . . 1 . Communications Jammed . | . . . . . . . . . . . . . . . . . . Distress Signals . | . . . . . . . . . . . . . . . . . . Times Spotted 246 | . 28 12 43 6 . 3 22 12 18 29 28 14 13 . 3 8 7 Peak Tracking Total 11 | . 6 3 7 3 . 3 7 4 3 8 7 11 8 . 3 4 7 Tactical Retreats 30 | . 2 2 2 1 . . 3 . 1 1 9 3 3 . 1 1 1 Traps | -11 -10 -10 -9 -9 -9 -8 -8 -8 -7 -6 -5 -5 -5 -5 -4 -4 -4 ------- Run | Yrd Mat Min Mat Min Exi Min Mat Gar Fac Fac Fac Upp Upp Zhi Pro Fac Ext Traps Triggered 10 | . 1 . 1 . . . 2 . . . 1 . . . . 2 3 Indirectly 1 | . . . . . . . 1 . . . . . . . . . . Trap Hack Attempts . | . . . . . . . . . . . . . . . . . . Triggered . | . . . . . . . . . . . . . . . . . . Disarmed . | . . . . . . . . . . . . . . . . . . Reprogrammed . | . . . . . . . . . . . . . . . . . . Reused . | . . . . . . . . . . . . . . . . . . Traps Extracted . | . . . . . . . . . . . . . . . . . . Installed . | . . . . . . . . . . . . . . . . . . Triggered 3 | . . . . . . . . . . . . 1 2 . . . . Machines | -11 -10 -10 -9 -9 -9 -8 -8 -8 -7 -6 -5 -5 -5 -5 -4 -4 -4 ---------- Run | Yrd Mat Min Mat Min Exi Min Mat Gar Fac Fac Fac Upp Upp Zhi Pro Fac Ext Machines Disabled 12 | . . . 1 . . . 5 1 . 5 . . . . . . . Max in Single Turn 4 | . . . 1 . . . 2 1 . 4 . . . . . . . Garrison Access 6 | . . . . . . . . . 2 . 2 . . . . 2 . Garrison Relay 1 | . . . . . . . . 1 . . . . . . . . . Machines Repaired . | . . . . . . . . . . . . . . . . . . Machines Dismantled . | . . . . . . . . . . . . . . . . . . Machines Sabotaged . | . . . . . . . . . . . . . . . . . . Overloaded Fab Kills . | . . . . . . . . . . . . . . . . . . Hacking | -11 -10 -10 -9 -9 -9 -8 -8 -8 -7 -6 -5 -5 -5 -5 -4 -4 -4 --------- Run | Yrd Mat Min Mat Min Exi Min Mat Gar Fac Fac Fac Upp Upp Zhi Pro Fac Ext Machines Accessed 61 | . 6 . 9 2 1 . 8 1 8 3 12 . . 5 . 6 . Terminals 45 | . 5 . 9 2 . . 6 1 6 2 10 . . . . 4 . Fabricators 1 | . . . . . . . . . . 1 . . . . . . . Repair Stations 2 | . 1 . . . . . 1 . . . . . . . . . . Recycling Units . | . . . . . . . . . . . . . . . . . . Scanalyzers . | . . . . . . . . . . . . . . . . . . Garrison Access 7 | . . . . . . . 1 . 2 . 2 . . . . 2 . Total Hacks 169 | . 20 . 27 7 1 . 19 2 22 12 28 . . 18 . 13 . Successful 114 | . 17 . 17 3 1 . 11 . 10 9 18 . . 18 . 10 . Failed 54 | . 3 . 9 4 . . 8 2 12 3 10 . . . . 3 . Catastrophic 5 | . . . 2 . . . . . 1 . 2 . . . . . . Database Lockouts 1 | . . . 1 . . . . . . . . . . . . . . Manual 122 | . 12 . 27 7 1 . 12 . 18 9 26 . . . . 10 . Terminals 135 | . 18 . 27 7 . . 15 2 20 9 26 . . . . 11 . Fabricators 3 | . . . . . . . . . . 3 . . . . . . . Repair Stations 5 | . 2 . . . . . 3 . . . . . . . . . . Recycling Units . | . . . . . . . . . . . . . . . . . . Scanalyzers . | . . . . . . . . . . . . . . . . . . Garrison Access 7 | . . . . . . . 1 . 2 . 2 . . . . 2 . Terminal Hacks 44 | . 7 . 8 . 1 . 1 . 1 2 5 . . 18 . 1 . Record 6 | . . . . . . . . . . . . . . 6 . . . Part Schematic 6 | . . . . . . . . . . 1 1 . . 4 . . . Robot Analysis 5 | . . . 1 . . . . . . . . . . 4 . . . Prototype ID Bank 9 | . 3 . 2 . . . . . . . . . . 4 . . . Terminal Index 1 | . . . . . . . . . . . 1 . . . . . . Fabricator Index 1 | . . . . . . . . . . . . . . . . 1 . Unreport Threat 3 | . 1 . 1 . . . . . . . 1 . . . . . . Locate Traps 6 | . 1 . 3 . . . 1 . . . 1 . . . . . . Patrol Status 1 | . . . 1 . . . . . . . . . . . . . . Recall Extermination 1 | . . . . . . . . . . . 1 . . . . . . Recall Reinforcements 2 | . 1 . . . . . . . . 1 . . . . . . . Zone Layout 2 | . 1 . . . . . . . 1 . . . . . . . . Derelict Proto ID Bank 1 | . . . . . 1 . . . . . . . . . . . . Fabricator Hacks 2 | . . . . . . . . . . 2 . . . . . . . Load Schematic 1 | . . . . . . . . . . 1 . . . . . . . Build 1 | . . . . . . . . . . 1 . . . . . . . Repair Station Hacks 3 | . 2 . . . . . 1 . . . . . . . . . . Scan Component 2 | . 1 . . . . . 1 . . . . . . . . . . Repair 1 | . 1 . . . . . . . . . . . . . . . . Recycling Unit Hacks . | . . . . . . . . . . . . . . . . . . Scanalyzer . | . . . . . . . . . . . . . . . . . . Garrison Access Hacks 7 | . . . . . . . 1 . 2 . 2 . . . . 2 . Unlock Access 1 | . . . . . . . 1 . . . . . . . . . . Seal Access 6 | . . . . . . . . . 2 . 2 . . . . 2 . Unauthorized Hacks 58 | . 8 . 9 3 . . 8 . 7 5 11 . . . . 7 . Terminals 58 | . 8 . 9 3 . . 8 . 7 5 11 . . . . 7 . Track 1 | . . . . . . . . . . . 1 . . . . . . Assimilate 3 | . . . . . . . 1 . 1 . 1 . . . . . . Botnet 19 | . 3 . 4 1 . . 2 . 1 2 3 . . . . 3 . Operators 2 | . . . . . . . . . . 1 1 . . . . . . Skim 33 | . 5 . 5 2 . . 5 . 5 2 5 . . . . 4 . Fabricators . | . . . . . . . . . . . . . . . . . . Repair Stations . | . . . . . . . . . . . . . . . . . . Recycling Units . | . . . . . . . . . . . . . . . . . . Scanalyzers . | . . . . . . . . . . . . . . . . . . Garrison Access . | . . . . . . . . . . . . . . . . . . Data Cores Recovered 1 | . 1 . . . . . . . . . . . . . . . . Used . | . . . . . . . . . . . . . . . . . . Hacking Detections 47 | . 6 . 9 2 . . 7 1 6 3 9 . . . . 4 . Full Trace Events 2 | . . . . . . . . . 1 1 . . . . . . . Feedback Events . | . . . . . . . . . . . . . . . . . . Feedback Blocked . | . . . . . . . . . . . . . . . . . . Robot Schematics Acquired . | . . . . . . . . . . . . . . . . . . Robots Built . | . . . . . . . . . . . . . . . . . . Authchips . | . . . . . . . . . . . . . . . . . . Time . | . . . . . . . . . . . . . . . . . . Total Robot Build Rating . | . . . . . . . . . . . . . . . . . . Part Schematics Acquired 6 | . . . . . . . . . . 1 1 . . 4 . . . Parts Built 1 | . . . . . . . . . . 1 . . . . . . . Authchips . | . . . . . . . . . . . . . . . . . . Time 95 | . . . . . . . . . . 95 . . . . . . . Total Part Build Rating 5 | . . . . . . . . . . 5 . . . . . . . Parts Repaired 1 | . 1 . . . . . . . . . . . . . . . . Time 26 | . 26 . . . . . . . . . . . . . . . . Parts Recycled . | . . . . . . . . . . . . . . . . . . Recycled Matter . | . . . . . . . . . . . . . . . . . . Retrieved Matter . | . . . . . . . . . . . . . . . . . . Retrieved Components . | . . . . . . . . . . . . . . . . . . Parts Scanalyzed . | . . . . . . . . . . . . . . . . . . Part Schematics Acquired . | . . . . . . . . . . . . . . . . . . Parts Damaged . | . . . . . . . . . . . . . . . . . . Bothacking | -11 -10 -10 -9 -9 -9 -8 -8 -8 -7 -6 -5 -5 -5 -5 -4 -4 -4 ------------ Run | Yrd Mat Min Mat Min Exi Min Mat Gar Fac Fac Fac Upp Upp Zhi Pro Fac Ext Used RIF Installer 1 | . . . . . . . . 1 . . . . . . . . . Robots Hacked . | . . . . . . . . . . . . . . . . . . Non-combat . | . . . . . . . . . . . . . . . . . . Combat . | . . . . . . . . . . . . . . . . . . Robot Hacks Applied . | . . . . . . . . . . . . . . . . . . Relay Couplers Released 4 | . . . . . . . . 4 . . . . . . . . . Machine Destruction 4 | . . . . . . . . 4 . . . . . . . . . Attached 1 | . . . . . . . . . 1 . . . . . . . . Fabnet Peak Effective % . | . . . . . . . . . . . . . . . . . . Robots Rewired 1 | . . . . . . . . . . . . . . . . . 1 Allies Hacked 1 | . . . . . . . . . . 1 . . . . . . . Hacks Repelled . | . . . . . . . . . . . . . . . . . . Allies | -11 -10 -10 -9 -9 -9 -8 -8 -8 -7 -6 -5 -5 -5 -5 -4 -4 -4 -------- Run | Yrd Mat Min Mat Min Exi Min Mat Gar Fac Fac Fac Upp Upp Zhi Pro Fac Ext Total Allies 4 | . . . . . . . 1 . 1 . 1 . . . . . 1 Largest Group 1 | . . . . . . . 1 . 1 1 1 . . . . . 1 Highest-Rated Group 38 | . . . . . . . 10 . 10 10 10 . . . . . 38 Highest-Rated Ally 38 | . . . . . . . 10 . 10 10 10 . . . . . 38 Total Orders 5 | . . . . . . . . . 2 3 . . . . . . . STAY 3 | . . . . . . . . . 1 2 . . . . . . . FOLLOW 2 | . . . . . . . . . 1 1 . . . . . . . Ally Attacks 1 | . . . . . . . . . . . . . . . . . 1 Total Damage 48 | . . . . . . . . . . . . . . . . . 48 Kills . | . . . . . . . . . . . . . . . . . . Allies Corrupted . | . . . . . . . . . . . . . . . . . . Allies Melted . | . . . . . . . . . . . . . . . . . . Intel | -11 -10 -10 -9 -9 -9 -8 -8 -8 -7 -6 -5 -5 -5 -5 -4 -4 -4 ------- Run | Yrd Mat Min Mat Min Exi Min Mat Gar Fac Fac Fac Upp Upp Zhi Pro Fac Ext Robot Analysis Total 5 | . . . 1 . . . . . . . . . . 4 . . . Derelict Logs Recovered 5 | . . 2 . 1 . . . . . . . 1 1 . . . . Drone Launches . | . . . . . . . . . . . . . . . . . . Drone Recoveries . | . . . . . . . . . . . . . . . . . . Exploration | -11 -10 -10 -9 -9 -9 -8 -8 -8 -7 -6 -5 -5 -5 -5 -4 -4 -4 ------------- Run | Yrd Mat Min Mat Min Exi Min Mat Gar Fac Fac Fac Upp Upp Zhi Pro Fac Ext Turns Passed 15876 | 92 1437 1018 2192 673 773 332 1798 858 1868 1516 1659 68 236 67 70 469 750 Spaces Moved 10633 | 54 724 577 1084 380 482 185 681 362 854 832 2186 184 621 161 189 827 250 Core 307 | 8 . . . . . . . . . . . . . . . 49 250 Treads 6115 | 46 724 577 1084 380 482 185 681 362 854 740 . . . . . . . Legs . | . . . . . . . . . . . . . . . . . . Wheels . | . . . . . . . . . . . . . . . . . . Hover . | . . . . . . . . . . . . . . . . . . Flight 4211 | . . . . . . . . . . 92 2186 184 621 161 189 778 . Fastest Speed 34 | 50 160 160 160 160 160 160 160 160 160 34 34 37 37 37 37 37 50 Average Speed 114 | 149 160 160 160 160 160 160 160 160 160 147 34 37 37 37 37 52 282 Slowest Speed 320 | 160 160 160 160 160 160 160 240 160 160 320 117 37 40 37 37 300 300 Overloaded Moves . | . . . . . . . . . . . . . . . . . . Propulsion Burnouts . | . . . . . . . . . . . . . . . . . . Robots Hopped 22 | . . . . . . . . . . . 6 4 . . 1 11 . Cave-ins Triggered . | . . . . . . . . . . . . . . . . . . Exploration Rate (%) 51 | 5 92 99 91 71 91 42 40 37 26 20 51 37 77 62 36 26 22 Regions Visited 17 Branch Regions 9 Pre-discovered Areas 9 | . . . 4 1 . . . . 1 . . . . 3 . . . Known Exits Taken 10 | . . . . . . 1 1 . 1 1 1 1 1 1 1 1 . Unknown Exits Taken 6 | 1 1 1 1 1 1 . . . . . . . . . . . . Scrap Searched 9 | . . 2 . . . 1 . . . . . 2 4 . . . . Spaces Dug 23 | . . . 2 . . . . . 6 . 15 . . . . . . Terrain Destroyed 195 | . 11 3 20 4 . 34 42 4 21 41 15 . . . . . . Melee 18 | . . . 2 . . . . . 1 . 15 . . . . . . Projectile 28 | . . 3 3 3 . . 3 . 6 10 . . . . . . . AOE 149 | . 11 . 15 1 . 34 39 4 14 31 . . . . . . . Terrain Rammed . | . . . . . . . . . . . . . . . . . . Walls Destroyed . | . . . . . . . . . . . . . . . . . . Machines Disabled . | . . . . . . . . . . . . . . . . . . Actions | -11 -10 -10 -9 -9 -9 -8 -8 -8 -7 -6 -5 -5 -5 -5 -4 -4 -4 --------- Run | Yrd Mat Min Mat Min Exi Min Mat Gar Fac Fac Fac Upp Upp Zhi Pro Fac Ext Total 13735 | 63 901 639 1384 413 485 215 1319 625 1319 1019 3049 179 625 166 187 853 294 Wait 2399 | . 72 36 149 12 . 23 564 237 408 93 796 . 1 . . 8 . Move 10574 | 53 723 576 1083 379 481 184 681 361 853 831 2173 175 620 160 186 805 250 Hop 21 | . . . . . . . . . . . 6 4 . . 1 10 . Pick Up 68 | 4 21 3 16 . 1 . 6 1 5 5 2 . . 1 . 3 . Fast Attach 60 | 6 5 . 8 3 . . 4 . 4 7 10 . 1 4 . 2 6 Attach 42 | . 1 2 3 . . . 4 1 2 10 15 . 1 . . 3 . Detach 26 | . 2 . . . . . . 1 2 1 18 . . . . 2 . Swap 79 | . 8 2 17 3 1 3 12 7 15 9 1 . 1 . . . . Drop 86 | . 12 3 24 1 2 . 6 2 8 11 8 . 1 1 . 2 5 Fire 302 | . 57 17 80 15 . 5 41 15 21 51 . . . . . . . Melee 25 | . . . 4 . . . . . 1 . 20 . . . . . . Ram . | . . . . . . . . . . . . . . . . . . Kick . | . . . . . . . . . . . . . . . . . . Crush 1 | . . . . . . . 1 . . . . . . . . . . Escape Stasis 18 | . . . . . . . . . . . . . . . . 18 . Rewire 34 | . . . . . . . . . . 1 . . . . . . 33 Trap . | . . . . . . . . . . . . . . . . . . Miscellaneous . | . . . . . . . . . . . . . . . . . . Route ------- -11/Scrapyard -10/Materials (discovered 5 exits: *Mat x3 / [*Min] / Sub) -10/Mines (discovered 3 exits: *Mat x2 / *Sub) -9/Materials (discovered 4 exits: *Mat x3 / *Min) -9/Mines (discovered 2 exits: Mat / *Exi) -9/Exiles (discovered 2 exits: [*Min x2]) -8/Mines -8/Materials (discovered 2 exits: *Fac / Gar) -8/Garrison -7/Factory (discovered 7 exits: *Fac x4 / Sto / Low x2) -6/Factory -5/Factory (discovered 4 exits: *Fac x3 / *Upp) -5/Upper Caves -5/Upper Caves -5/Zhirov -4/Proximity Caves -4/Factory (discovered 5 exits: *Res x4 / *Ext) -4/Extension History --------- Turn | Location | Event 8 | -11/Scrapyard | Discovered new exit (range 16) 93 | -11/Scrapyard | Entered Materials 339 | -10/Materials | Discovered new exit (range 16) 340 | -10/Materials | Build established: Mutant 762 | -10/Materials | Discovered new exit (range 16) 1041 | -10/Materials | Discovered new exit (range 13) 1243 | -10/Materials | Discovered new exit (range 16) 1249 | -10/Materials | Loaded intel: 8 terminal locations 1321 | -10/Materials | Identified exit to Subcaves 1380 | -10/Materials | Repaired EM Pulse Gun 1385 | -10/Materials | Loaded intel: 1 repair station location 1484 | -10/Materials | Learned location of 1 exit from Recycling 1519 | -10/Materials | Learned 2 Storage zone layouts 1530 | -10/Materials | Entered Mines 1583 | -10/Mines | Learned Materials terminal intel 1690 | -10/Mines | Found a damaged Exp. Sensor Array with a note attached 1695 | -10/Mines | Found Prototype Device 1821 | -10/Mines | Discovered new exit (range 11) 2104 | -10/Mines | A weapon hastily lodged in a ceiling crevice suddenly fell to the ground 2131 | -10/Mines | Discovered new exit (range 4) 2214 | -10/Mines | Discovered exit to Subcaves (range 8) 2548 | -10/Mines | Entered Materials 2548 | -9/Materials | Evolved 2 slots: Utility x2 2549 | -9/Materials | Loaded intel: 11 terminal locations 3463 | -9/Materials | Central database locked down 3537 | -9/Materials | Discovered new exit (range 4) 3629 | -9/Materials | Discovered new exit (range 12) 3900 | -9/Materials | Learned Storage trap positions 3955 | -9/Materials | Learned Storage emergency access door positions 4001 | -9/Materials | Learned location of Storage (-7) 4032 | -9/Materials | Discovered new exit (range 10) 4035 | -9/Materials | Loaded intel: 2 repair station locations 4095 | -9/Materials | Identified exit to Materials 4130 | -9/Materials | Learned Storage terminal intel 4177 | -9/Materials | Learned 4 Recycling zone layouts 4740 | -9/Materials | Entered Mines 5019 | -9/Mines | Found a hidden stash of uninstalled traps 5404 | -9/Mines | Deemed a non-threat by the Exiles lab entrance 5404 | -9/Mines | Discovered new exit (range 5) 5413 | -9/Mines | Entered Exiles 5434 | -9/Exiles | Discovered new exit (range 15) 5487 | -9/Exiles | Met 8R-AWN 5514 | -9/Exiles | Met EX-HEX 5565 | -9/Exiles | Met EX-BIN 5596 | -9/Exiles | Aligned with FarCom system 5597 | -9/Exiles | Given EX-Vault access code 5639 | -9/Exiles | Opened EX-Vault 5648 | -9/Exiles | Found Latent Energy Streamer 5682 | -9/Exiles | Warned to stay clear of 0b10 Research branches 5724 | -9/Exiles | Met EX-DEC 5771 | -9/Exiles | Visited The Gauntlet 6165 | -9/Exiles | Discovered new exit (range 12) 6186 | -9/Exiles | Left Exiles lab with Latent Energy Streamer 6186 | -9/Exiles | Entered Mines 6504 | -8/Mines | Discovered exit to Materials (range 7) 6518 | -8/Mines | Entered Materials 6518 | -8/Materials | Evolved 2 slots: Propulsion x1, Utility x1 6790 | -8/Materials | Discovered new exit (range 15) 7702 | -8/Materials | System corruption reached 10% 7753 | -8/Materials | Learned Factory emergency access door positions 7778 | -8/Materials | Garrison activated, responded to threat 7784 | -8/Materials | Learned Storage emergency access door positions 7804 | -8/Materials | Learned location of 1 exit from Recycling 7815 | -8/Materials | Learned 4 Lower Caves zone layouts 7816 | -8/Materials | Learned 8 Factory zone layouts 7823 | -8/Materials | Learned 2 Lower Caves zone layouts 7840 | -8/Materials | Learned Factory stockpile data 8316 | -8/Materials | Identified exit to Garrison 8316 | -8/Materials | Entered Garrison 8679 | -8/Garrison | Destroyed 7 combat bots 8708 | -8/Garrison | Triggered checkpoint 8785 | -8/Garrison | Discovered new exit (range 8) 8844 | -8/Garrison | Triggered checkpoint 9066 | -8/Garrison | Installed Relay Interface Framework 9099 | -8/Garrison | Garrison Relay disabled 9174 | -8/Garrison | Entered Factory 9174 | -7/Factory | Evolved 2 slots: Utility x2 9175 | -7/Factory | Identified exit to Storage 9175 | -7/Factory | Identified exit to Lower Caves 9176 | -7/Factory | Identified exit to Factory 9842 | -7/Factory | Build established: Scavenger-Skirmisher 9980 | -7/Factory | Discovered exit to Factory (range 16) 10860 | -7/Factory | Build established: Scavenger-Mutant 10942 | -7/Factory | Learned Hub_04(d) stockpile data 10972 | -7/Factory | Learned location of 1 exit from Lower Caves 10993 | -7/Factory | Learned Factory stockpile data 11005 | -7/Factory | Learned 2 Extension zone layouts 11006 | -7/Factory | Learned location of 1 exit from Lower Caves 11009 | -7/Factory | Learned 8 Factory zone layouts 11023 | -7/Factory | Learned location of Upper Caves (-4) 11042 | -7/Factory | Entered another Factory area 11042 | -6/Factory | Accompanied by 1 ally 11042 | -6/Factory | Evolved 2 slots: Utility x2 11043 | -6/Factory | Identified exit to Factory 12228 | -6/Factory | Build established: Mutant 12388 | -6/Factory | Garrison activated, responded to threat 12409 | -6/Factory | Destroyed 7 combat bots 12426 | -6/Factory | Fabricated Imp. Hacking Suite (x1) 12462 | -6/Factory | Lost 5 parts (1p1n3u) 12528 | -6/Factory | Lost 4 parts (1n1u2w) 12558 | -6/Factory | Entered another Factory area 12558 | -5/Factory | Evolved 2 slots: Utility x2 12678 | -5/Factory | Discovered new exit (range 16) 12808 | -5/Factory | Discovered new exit (range 16) 12818 | -5/Factory | Build established: Hacker-Scout 13666 | -5/Factory | Loaded intel: 102 trap records 13808 | -5/Factory | Learned Armory security intel 13863 | -5/Factory | Identified exit to Factory 13910 | -5/Factory | Learned Testing security intel 13948 | -5/Factory | Learned Research scanalyzer intel 13977 | -5/Factory | Learned location of 2 exits from Proximity Caves 14062 | -5/Factory | Learned Armory stockpile data 14120 | -5/Factory | Learned location of 1 exit from Upper Caves 14190 | -5/Factory | Learned Extension emergency access door positions 14216 | -5/Factory | Identified exit to Upper Caves 14217 | -5/Factory | Entered Upper Caves 14218 | -5/Upper Caves | Identified exit to Upper Caves 14237 | -5/Upper Caves | Learned Factory stockpile data 14263 | -5/Upper Caves | Attracted the attention of an 0b10 outpost 14285 | -5/Upper Caves | Entered another Upper Caves area 14357 | -5/Upper Caves | Attracted the attention of an 0b10 checkpoint 14418 | -5/Upper Caves | Lost 4 parts (1n3u) 14469 | -5/Upper Caves | Learned Factory non-interactive machine intel 14505 | -5/Upper Caves | Build established: Hacker-Mutant 14517 | -5/Upper Caves | Discovered new exit (range 14) 14521 | -5/Upper Caves | Identified exit to Zhirov 14521 | -5/Upper Caves | Entered Zhirov 14521 | -5/Zhirov | Discovered new exit (range 3) 14528 | -5/Zhirov | Met Zhirov 14535 | -5/Zhirov | Learned location of Quarantine (-3) 14535 | -5/Zhirov | Learned location of Testing (-2) 14535 | -5/Zhirov | Learned location of Command (-1) 14543 | -5/Zhirov | Zhirov requested help retrieving the SGEMP Prototype 14551 | -5/Zhirov | Found Alien Artifact 14551 | -5/Zhirov | Identified Integrated Reactor 14551 | -5/Zhirov | Installed Integrated Reactor, increased core energy generation (+10) 14558 | -5/Zhirov | Found Alien Artifact 14588 | -5/Zhirov | Identified exit to Proximity Caves 14588 | -5/Zhirov | Entered Proximity Caves 14595 | -4/Proximity Caves | Spotted B-86 Titan 14658 | -4/Proximity Caves | Entered Factory 14658 | -4/Factory | Evolved 2 slots: Propulsion x1, Utility x1 14659 | -4/Factory | Identified exit to Research 14661 | -4/Factory | Loaded intel: 182 non-interactive machine locations 14958 | -4/Factory | Discovered new exit (range 15) 15124 | -4/Factory | Identified exit to Extension 15127 | -4/Factory | Entered Extension 15523 | -4/Extension | Build established: Mutant 15867 | -4/Extension | Core integrity fell below 50% 15875 | -4/Extension | Core integrity fell below 20% 15877 | -4/Extension | Destroyed by G-67 Veteran with Field Laser Last Messages --------------- 15861_ Slug penetrates 3J-7QL(h). 15861_ Attempting to rewire 3J-7QL(h). 15862_ 18-NEL(l) destroyed. 15862_ Attempting to rewire 3J-7QL(h). 15863_ Penetrated by Slug. 15864_ Attempting to rewire 3J-7QL(h). 15866_ Penetrated by Slug. 15867_ Attempting to rewire 3J-7QL(h). 15869_ Penetrated by Slug. 15869_ Attempting to rewire 3J-7QL(h). 15872_ Slug penetrates Wall. 15872_ Attempting to rewire 3J-7QL(h). 15873_ System corrupted: Matter fused (-5). 15873_ Attempting to rewire 3J-7QL(h). 15875_ Penetrated by Slug. 15875_ Attempting to rewire 3J-7QL(h). 15876_ Imp. Utility Shielding destroyed. 15876_ System corrupted by crushing effect (+1). 15877_ Attempting to rewire 3J-7QL(h). 15877_ Y-64 Sentinel destroyed. Map ----- +----------------------------------------------------+ | | | | | | | | | | | | | | | | | | | | | | | | | | | | | | | | | | | | | | | ????????????????????????????????????? | | ????????????????????????????????????? | | ??????????#########?????????????????? | | ??????????# [ #?????????????????? | | ??????????#[ l g ############??????? | | ??????????# !h[[ g ???????? | | ??????????# @b=[ #???g?????????????? | | ??????????# g=% #?????????????????? | | ????????######+###### #???????????? | | ????????# * / #????? | | ????????## ###### #???????????? | | ?????##### #????????????????????? | | ?????# ##???????????????????? | | ?????# !* #???????????????????? | | ?????# !!! #???????????????????? | | ?????# ####+###+####????????????????? | | ?????# #?# #????????????????? | | ?????# #?# #????????????????? | | ?????# #?# #????????????????? | | ?????# #?# #????????????????? | | ?????# #?###########????????????????? | | ?????# #????????????????????????????? | | ?????# #????????????????????????????? | | ?????# #????????????????????????????? | | ?????# #????????????????????????????? | | ?????# #????????????????????????????? | | ?????# #????????????????????????????? | | ?????# #????????????????????????????? | | ?????# #????????????????????????????? | | ?????# #????????????????????????????? | | ?????# #????????????????????????????? | +----------------------------------------------------+ Best States ------------- Heat Dissipation 73 Energy Generation 45 Energy Capacity 650 Matter Stores 300 Matter Capacity 500 Sight Range 22 Terrain Scan Density 10 ECM Strength 2 Armor Coverage 375 Resistance: KI 20 Resistance: EM 25 Power Shielding 90 Utility Shielding 66 Weapon Cycling 15 Evasion (%) 73 Targeting Accuracy 8 Core Analysis 9 Recoil Reduction 3 Offensive Hacking 26 Defensive Hacking 20 Relay Coupler Types 1 Relay Coupler Value 22 Item Schematics ----------------- Imp. Hacking Suite | -6/Factory | Hacked Impulse Thruster | -5/Factory | Hacked Assault Drone Bay | -5/Zhirov | Free Exp. Heat Sink | -5/Zhirov | Free Exp. Optical Array | -5/Zhirov | Free Imp. Arc Thrower | -5/Zhirov | Free Robot Schematics ------------------ None Fabricated ------------ Imp. Hacking Suite | x1 | -6/Factory Alien Tech Used ----------------- Integrated Reactor Achievements -------------- None Challenges ------------ None Game ------ Seed LargePitchforkHammer Manual? 0 Play Time 03:18:27 Cumulative 261.7 hours Start 2024.12.24 @ 17:38:41 End 2024.12.24 @ 22:05:23 Sessions 5 Manual Loads 0 Difficulty Rogue Special Mode None Game No. 173 Rogue 135 Adventurer 5 Explorer 33 Win Type - Total 6 Types 5/0/1/0/0/0/0/0/0 Lore% 41 Gallery% 67 Achievement% 65 Wizard Run 0 Options --------- Layout 2 ASCII 1 Keyboard 1 Movement Vi Keybinds 0 Fullscreen 1 Font 16/T_Terminus Map View 53x45 Zoom Use 0% Tactical HUD 1 Map Filters NONE Filters LOW_CONTRAST(47,30,31) Steam 1 RUN: 5b8b02d0-65ad-40fa-ab42-c9a85d78fb2a